[Event "Early-Titled-Tuesday-Blitz-September-26-2023"]
[Site "Chess.com"]
[Date "2023.09.26"]
[Round "3"]
[White "Makswolf200817"]
[Black "SHIVACalypso"]
[Result "1-0"]
[WhiteElo "2750"]
[BlackElo "2497"]
[TimeControl "180+1"]
[EndTime "8:29:00 PDT"]
[Termination "Makswolf200817 won by resignation"]

1. d4 {[%clk 0:03:00.9]} 1... Nf6 {[%clk 0:02:59.4]} 2. c4 {[%clk 0:03:01.1]}
2... e6 {[%clk 0:02:59.7]} 3. g3 {[%clk 0:03:01.5]} 3... Bb4+ {[%clk 0:02:54.3]}
4. Bd2 {[%clk 0:03:01.1]} 4... a5 {[%clk 0:02:53.6]} 5. Bg2 {[%clk 0:03:01]}
5... O-O {[%clk 0:02:52.8]} 6. e4 {[%clk 0:02:54.5]} 6... d5 {[%clk 0:02:52.7]}
7. cxd5 {[%clk 0:02:54]} 7... exd5 {[%clk 0:02:53.6]} 8. e5 {[%clk 0:02:54.1]}
8... Ne4 {[%clk 0:02:53.8]} 9. Bxb4 {[%clk 0:02:52.9]} 9... axb4 {[%clk
0:02:53.6]} 10. Ne2 {[%clk 0:02:52.1]} 10... b6 {[%clk 0:02:34.8]} 11. O-O
{[%clk 0:02:51.1]} 11... Ba6 {[%clk 0:02:34.7]} 12. Re1 {[%clk 0:02:45.1]} 12...
c5 {[%clk 0:02:34]} 13. Nf4 {[%clk 0:02:33.7]} 13... Ra7 {[%clk 0:02:13.7]} 14.
dxc5 {[%clk 0:02:22.2]} 14... bxc5 {[%clk 0:02:07.9]} 15. Qxd5 {[%clk
0:02:19.2]} 15... Qxd5 {[%clk 0:01:26.5]} 16. Nxd5 {[%clk 0:02:20.1]} 16... Ng5
{[%clk 0:01:25.9]} 17. Nd2 {[%clk 0:02:18.4]} 17... Rd8 {[%clk 0:01:23.3]} 18.
Nb3 {[%clk 0:02:11.3]} 18... Bc4 {[%clk 0:01:20.2]} 19. Red1 {[%clk 0:02:04.9]}
19... Rad7 {[%clk 0:01:13.6]} 20. Ne3 {[%clk 0:01:39.6]} 20... Rxd1+ {[%clk
0:01:12.7]} 21. Rxd1 {[%clk 0:01:38.8]} 21... Rxd1+ {[%clk 0:01:11]} 22. Nxd1
{[%clk 0:01:39.6]} 22... Nd7 {[%clk 0:01:05.7]} 23. f4 {[%clk 0:01:36.3]} 23...
Ne6 {[%clk 0:01:05.1]} 24. Nc1 {[%clk 0:01:07.3]} 24... Nd4 {[%clk 0:01:03.7]}
25. Kf2 {[%clk 0:01:05.6]} 25... f6 {[%clk 0:00:58.2]} 26. Ne3 {[%clk
0:01:04.8]} 26... Bf7 {[%clk 0:00:48.2]} 27. Bh3 {[%clk 0:00:57.3]} 27... Nb6
{[%clk 0:00:40]} 28. exf6 {[%clk 0:00:57.3]} 28... gxf6 {[%clk 0:00:40.9]} 29.
Nd3 {[%clk 0:00:56.6]} 29... Bxa2 {[%clk 0:00:37.2]} 30. Nxc5 {[%clk 0:00:56.7]}
30... Kf7 {[%clk 0:00:29.9]} 31. Bf1 {[%clk 0:00:46.1]} 31... Ke7 {[%clk
0:00:17.5]} 32. Bd3 {[%clk 0:00:45.8]} 32... Kd6 {[%clk 0:00:17.2]} 33. Ne4+
{[%clk 0:00:43.9]} 33... Ke6 {[%clk 0:00:16.5]} 34. g4 {[%clk 0:00:40.2]} 34...
Nd5 {[%clk 0:00:14.6]} 35. Nxd5 {[%clk 0:00:23.3]} 35... Bxd5 {[%clk 0:00:15.5]}
36. Nd2 {[%clk 0:00:23.4]} 36... h6 {[%clk 0:00:13.8]} 37. Ke3 {[%clk
0:00:23.3]} 37... Nc6 {[%clk 0:00:12.5]} 38. Bb5 {[%clk 0:00:22.5]} 38... Na7
{[%clk 0:00:10.9]} 39. Ba4 {[%clk 0:00:22.2]} 39... Nc8 {[%clk 0:00:11.1]} 40.
Ne4 {[%clk 0:00:18.5]} 40... Nb6 {[%clk 0:00:11.2]} 41. Bb5 {[%clk 0:00:15.5]}
41... Bc4 {[%clk 0:00:09.7]} 42. Bc6 {[%clk 0:00:12.6]} 42... Bd5 {[%clk
0:00:08.7]} 43. Bxd5+ {[%clk 0:00:10.7]} 43... Nxd5+ {[%clk 0:00:09.6]} 44. Kf3
{[%clk 0:00:11.3]} 44... b3 {[%clk 0:00:07.8]} 45. Nd2 {[%clk 0:00:11]} 45...
Nb4 {[%clk 0:00:07.7]} 46. Nxb3 {[%clk 0:00:11.1]} 46... Nd3 {[%clk 0:00:08.3]}
47. Nd4+ {[%clk 0:00:09]} 47... Kd5 {[%clk 0:00:08.6]} 48. Nf5 {[%clk
0:00:09.3]} 48... h5 {[%clk 0:00:06.4]} 49. gxh5 {[%clk 0:00:07.7]} 49... Ke6
{[%clk 0:00:06.4]} 50. h6 {[%clk 0:00:07.8]} 50... Kf7 {[%clk 0:00:06.6]} 51. h7
{[%clk 0:00:07.7]} 1-0

[Event "Early-Titled-Tuesday-Blitz-September-26-2023"]
[Site "Chess.com"]
[Date "2023.09.26"]
[Round "3"]
[White "BahadirOzen"]
[Black "Just_Lucky_1"]
[Result "1/2-1/2"]
[WhiteElo "2801"]
[BlackElo "2576"]
[TimeControl "180+1"]
[EndTime "8:29:03 PDT"]
[Termination "Game drawn - insufficient material"]

1. g3 {[%clk 0:03:00.9]} 1... Nf6 {[%clk 0:03:00.2]} 2. Nf3 {[%clk 0:03:00.8]}
2... e6 {[%clk 0:03:00.7]} 3. Bg2 {[%clk 0:03:01.1]} 3... d5 {[%clk 0:03:00.9]}
4. O-O {[%clk 0:03:01.7]} 4... Be7 {[%clk 0:03:01.5]} 5. b3 {[%clk 0:03:01.4]}
5... O-O {[%clk 0:03:01.9]} 6. Bb2 {[%clk 0:03:00.9]} 6... c5 {[%clk 0:03:02.5]}
7. e3 {[%clk 0:02:53.3]} 7... Nc6 {[%clk 0:03:02.1]} 8. d4 {[%clk 0:02:53]} 8...
cxd4 {[%clk 0:02:28.8]} 9. Nxd4 {[%clk 0:02:52]} 9... Nxd4 {[%clk 0:02:21.7]}
10. Qxd4 {[%clk 0:02:37.2]} 10... Ne8 {[%clk 0:02:15.7]} 11. Qd3 {[%clk
0:02:23.6]} 11... Bf6 {[%clk 0:02:07.3]} 12. Bxf6 {[%clk 0:02:22.2]} 12... Qxf6
{[%clk 0:02:04.8]} 13. Nd2 {[%clk 0:02:20.3]} 13... Bd7 {[%clk 0:01:57.9]} 14.
c4 {[%clk 0:02:14.1]} 14... Bc6 {[%clk 0:01:48.2]} 15. cxd5 {[%clk 0:02:13.5]}
15... Bxd5 {[%clk 0:01:49.1]} 16. Bxd5 {[%clk 0:02:13]} 16... Rd8 {[%clk
0:01:49.8]} 17. e4 {[%clk 0:01:52.9]} 17... exd5 {[%clk 0:01:49.2]} 18. exd5
{[%clk 0:01:53.8]} 18... Qg5 {[%clk 0:01:32]} 19. Ne4 {[%clk 0:01:40.3]} 19...
Qxd5 {[%clk 0:01:31.5]} 20. Qxd5 {[%clk 0:01:40.3]} 20... Rxd5 {[%clk
0:01:32.4]} 21. Rad1 {[%clk 0:01:40.5]} 21... Re5 {[%clk 0:01:16.7]} 22. Rfe1
{[%clk 0:01:28.9]} 22... f5 {[%clk 0:01:03.8]} 23. Ng5 {[%clk 0:01:29]} 23...
Rxe1+ {[%clk 0:01:02.3]} 24. Rxe1 {[%clk 0:01:29.9]} 24... Nf6 {[%clk
0:00:50.3]} 25. Re7 {[%clk 0:01:27.5]} 25... h6 {[%clk 0:00:50.6]} 26. Ne6
{[%clk 0:01:22.7]} 26... Rf7 {[%clk 0:00:50.9]} 27. Rxf7 {[%clk 0:01:23.2]}
27... Kxf7 {[%clk 0:00:51.8]} 28. Nd8+ {[%clk 0:01:24.1]} 28... Ke7 {[%clk
0:00:52.5]} 29. Nxb7 {[%clk 0:01:25]} 29... Kd7 {[%clk 0:00:52.8]} 30. f3 {[%clk
0:01:16.9]} 30... Kc6 {[%clk 0:00:52.8]} 31. Nd8+ {[%clk 0:01:16.7]} 31... Kb5
{[%clk 0:00:51.1]} 32. Ne6 {[%clk 0:01:13.6]} 32... g6 {[%clk 0:00:40.5]} 33. a3
{[%clk 0:01:08.9]} 33... Nd7 {[%clk 0:00:31.2]} 34. Kf2 {[%clk 0:01:05.4]} 34...
Kc6 {[%clk 0:00:28.7]} 35. Ke3 {[%clk 0:01:04.6]} 35... Kd6 {[%clk 0:00:28.6]}
36. Nf4 {[%clk 0:00:46.6]} 36... g5 {[%clk 0:00:28.6]} 37. Nd3 {[%clk
0:00:47.4]} 37... a5 {[%clk 0:00:21.7]} 38. Kd4 {[%clk 0:00:46.7]} 38... h5
{[%clk 0:00:13.9]} 39. Nb2 {[%clk 0:00:38]} 39... Ke6 {[%clk 0:00:07.2]} 40. Nc4
{[%clk 0:00:37.7]} 40... h4 {[%clk 0:00:03.3]} 41. Nxa5 {[%clk 0:00:30.3]} 41...
Ne5 {[%clk 0:00:03.3]} 42. Ke3 {[%clk 0:00:27.8]} 42... g4 {[%clk 0:00:03.8]}
43. gxh4 {[%clk 0:00:14.5]} 43... Nxf3 {[%clk 0:00:03.7]} 44. h3 {[%clk
0:00:08.7]} 44... Nxh4 {[%clk 0:00:04.1]} 45. hxg4 {[%clk 0:00:09.4]} 45... fxg4
{[%clk 0:00:05]} 46. Kf4 {[%clk 0:00:10.1]} 46... Ng6+ {[%clk 0:00:03.9]} 47.
Kxg4 {[%clk 0:00:10.4]} 47... Kd5 {[%clk 0:00:04.6]} 48. Kf3 {[%clk 0:00:06.2]}
48... Kd4 {[%clk 0:00:04.3]} 49. Ke2 {[%clk 0:00:06.2]} 49... Kc3 {[%clk
0:00:04.4]} 50. Ke3 {[%clk 0:00:04.8]} 50... Ne5 {[%clk 0:00:02]} 51. Ke4 {[%clk
0:00:05]} 51... Nc6 {[%clk 0:00:02.7]} 52. Nxc6 {[%clk 0:00:02.2]} 52... Kxb3
{[%clk 0:00:03.6]} 53. Nd4+ {[%clk 0:00:02.6]} 53... Kxa3 {[%clk 0:00:04]}
1/2-1/2

[Event "Early-Titled-Tuesday-Blitz-September-26-2023"]
[Site "Chess.com"]
[Date "2023.09.26"]
[Round "3"]
[White "astralpulse"]
[Black "BogdanDeac"]
[Result "1/2-1/2"]
[WhiteElo "2630"]
[BlackElo "2959"]
[TimeControl "180+1"]
[EndTime "8:29:03 PDT"]
[Termination "Game drawn by agreement"]

1. d4 {[%clk 0:02:59.7]} 1... d5 {[%clk 0:02:57.2]} 2. c4 {[%clk 0:02:58.7]}
2... dxc4 {[%clk 0:02:47.6]} 3. e3 {[%clk 0:02:56.3]} 3... Nf6 {[%clk
0:02:25.8]} 4. Nf3 {[%clk 0:02:53.8]} 4... e6 {[%clk 0:02:25.4]} 5. Bxc4 {[%clk
0:02:53.7]} 5... a6 {[%clk 0:02:26.1]} 6. O-O {[%clk 0:02:50.9]} 6... c5 {[%clk
0:02:26.8]} 7. dxc5 {[%clk 0:02:50.7]} 7... Bxc5 {[%clk 0:02:26.2]} 8. Qxd8+
{[%clk 0:02:50.2]} 8... Kxd8 {[%clk 0:02:27.1]} 9. Be2 {[%clk 0:02:44.9]} 9...
Ke7 {[%clk 0:02:25.8]} 10. Nc3 {[%clk 0:02:42]} 10... Rd8 {[%clk 0:02:24.1]} 11.
Nd2 {[%clk 0:02:39.9]} 11... Bd7 {[%clk 0:02:22]} 12. Nb3 {[%clk 0:02:33.1]}
12... Bb6 {[%clk 0:02:16.5]} 13. Bd2 {[%clk 0:02:04.6]} 13... Bc6 {[%clk
0:02:14.6]} 14. Rfd1 {[%clk 0:01:47.8]} 14... Nbd7 {[%clk 0:02:12.5]} 15. Be1
{[%clk 0:01:47.8]} 15... Ne5 {[%clk 0:02:07.9]} 16. Nd4 {[%clk 0:01:44]} 16...
Bxd4 {[%clk 0:02:07]} 17. exd4 {[%clk 0:01:43.4]} 17... Ng6 {[%clk 0:02:07.1]}
18. f3 {[%clk 0:01:29.4]} 18... a5 {[%clk 0:01:54.3]} 19. Rac1 {[%clk
0:01:29.2]} 19... a4 {[%clk 0:01:48.3]} 20. Bf1 {[%clk 0:01:14.4]} 20... Rdc8
{[%clk 0:01:35.2]} 21. Bg3 {[%clk 0:01:10.6]} 21... Nd5 {[%clk 0:01:21.9]} 22.
Nxd5+ {[%clk 0:01:00.1]} 22... Bxd5 {[%clk 0:01:21.6]} 23. a3 {[%clk 0:01:00.3]}
23... Kd8 {[%clk 0:00:45]} 24. Bb5 {[%clk 0:00:54.9]} 24... Bb3 {[%clk
0:00:38.6]} 25. Re1 {[%clk 0:00:54.7]} 25... Ne7 {[%clk 0:00:37.3]} 26. Bd6
{[%clk 0:00:40.4]} 26... b6 {[%clk 0:00:27.6]} 27. Kf2 {[%clk 0:00:30.4]} 27...
Nf5 {[%clk 0:00:22.2]} 28. Bf8 {[%clk 0:00:20.2]} 28... g6 {[%clk 0:00:05.8]}
29. g4 {[%clk 0:00:08.8]} 29... Rxc1 {[%clk 0:00:05.6]} 30. Rxc1 {[%clk
0:00:08.2]} 30... Nxd4 {[%clk 0:00:06.3]} 31. Bd3 {[%clk 0:00:07.5]} 31... Rc8
{[%clk 0:00:04.9]} 32. Rxc8+ {[%clk 0:00:05.2]} 32... Kxc8 {[%clk 0:00:05.8]}
33. Bg7 {[%clk 0:00:04.7]} 33... Nc6 {[%clk 0:00:05.3]} 34. h4 {[%clk
0:00:04.1]} 34... Kc7 {[%clk 0:00:05.1]} 35. h5 {[%clk 0:00:04.6]} 35... Kd6
{[%clk 0:00:05.2]} 36. h6 {[%clk 0:00:04.8]} 36... e5 {[%clk 0:00:04.8]} 37. Ke3
{[%clk 0:00:05.4]} 37... Bd5 {[%clk 0:00:04]} 38. Bf8+ {[%clk 0:00:05.2]} 38...
Kc7 {[%clk 0:00:03.1]} 39. Bg7 {[%clk 0:00:05.1]} 39... Kd6 {[%clk 0:00:02.8]}
40. Bb5 {[%clk 0:00:05.4]} 40... Bb3 {[%clk 0:00:02.2]} 41. Bxc6 {[%clk
0:00:05.5]} 41... Kxc6 {[%clk 0:00:02.5]} 42. Bxe5 {[%clk 0:00:06.2]} 42... Kd5
{[%clk 0:00:03.1]} 43. Bg7 {[%clk 0:00:06.5]} 43... Ke6 {[%clk 0:00:03.6]} 44.
f4 {[%clk 0:00:06.3]} 44... f5 {[%clk 0:00:03.9]} 45. g5 {[%clk 0:00:06.6]}
45... Kd5 {[%clk 0:00:03.8]} 46. Be5 {[%clk 0:00:06.7]} 46... b5 {[%clk
0:00:04.2]} 47. Kd3 {[%clk 0:00:06.6]} 47... Kc5 {[%clk 0:00:04.6]} 48. Kc3
{[%clk 0:00:06.9]} 48... Bc4 {[%clk 0:00:04.8]} 49. Bd4+ {[%clk 0:00:06.1]}
49... Kd5 {[%clk 0:00:05.1]} 50. Be5 {[%clk 0:00:07]} 50... Ke6 {[%clk
0:00:04.8]} 51. Bd4 {[%clk 0:00:07]} 51... Kf7 {[%clk 0:00:05.1]} 52. Be5 {[%clk
0:00:07.5]} 52... Bf1 {[%clk 0:00:05.1]} 53. Kb4 {[%clk 0:00:07.8]} 53... Kg8
{[%clk 0:00:05.3]} 54. Kc5 {[%clk 0:00:08.4]} 54... Be2 {[%clk 0:00:05.2]} 55.
Kd6 {[%clk 0:00:08.8]} 55... Bf1 {[%clk 0:00:05.6]} 56. Ke7 {[%clk 0:00:08.6]}
56... Be2 {[%clk 0:00:06.2]} 57. Kd6 {[%clk 0:00:08.7]} 57... Bd3 {[%clk
0:00:06.4]} 58. Kc5 {[%clk 0:00:09]} 58... Bf1 {[%clk 0:00:06.9]} 59. Kb4 {[%clk
0:00:09.4]} 59... Be2 {[%clk 0:00:06.2]} 1/2-1/2

[Event "Early-Titled-Tuesday-Blitz-September-26-2023"]
[Site "Chess.com"]
[Date "2023.09.26"]
[Round "3"]
[White "carokannlover213"]
[Black "Shield12"]
[Result "0-1"]
[WhiteElo "2694"]
[BlackElo "2971"]
[TimeControl "180+1"]
[EndTime "8:29:04 PDT"]
[Termination "Shield12 won by checkmate"]

1. d4 {[%clk 0:03:00.9]} 1... Nf6 {[%clk 0:02:59.9]} 2. c4 {[%clk 0:02:59.3]}
2... e6 {[%clk 0:02:59.9]} 3. Nf3 {[%clk 0:02:58.8]} 3... d5 {[%clk 0:03:00]} 4.
g3 {[%clk 0:02:59.5]} 4... Be7 {[%clk 0:02:59.3]} 5. Bg2 {[%clk 0:02:58.6]} 5...
O-O {[%clk 0:03:00]} 6. O-O {[%clk 0:02:57.7]} 6... dxc4 {[%clk 0:03:00.6]} 7.
Qc2 {[%clk 0:02:55.1]} 7... a6 {[%clk 0:03:00.2]} 8. a4 {[%clk 0:02:53.8]} 8...
Nc6 {[%clk 0:02:59.1]} 9. Rd1 {[%clk 0:02:44.1]} 9... Nb4 {[%clk 0:02:32.3]} 10.
Qxc4 {[%clk 0:02:42.9]} 10... b5 {[%clk 0:02:24.2]} 11. Qb3 {[%clk 0:02:43.3]}
11... Bb7 {[%clk 0:02:21.5]} 12. Nc3 {[%clk 0:02:41.9]} 12... bxa4 {[%clk
0:02:15.7]} 13. Rxa4 {[%clk 0:02:39.5]} 13... a5 {[%clk 0:02:13.6]} 14. Bg5
{[%clk 0:02:33.9]} 14... h6 {[%clk 0:01:47]} 15. Bxf6 {[%clk 0:02:32.1]} 15...
Bxf6 {[%clk 0:01:47.9]} 16. e4 {[%clk 0:02:31.9]} 16... c5 {[%clk 0:01:40.7]}
17. dxc5 {[%clk 0:02:15.1]} 17... Qc7 {[%clk 0:01:39.8]} 18. Raa1 {[%clk
0:02:08.6]} 18... Qxc5 {[%clk 0:01:38.4]} 19. Rac1 {[%clk 0:02:09.3]} 19... Qb6
{[%clk 0:01:30.7]} 20. Na4 {[%clk 0:01:53.4]} 20... Qb5 {[%clk 0:01:28.6]} 21.
e5 {[%clk 0:01:35.4]} 21... Bd8 {[%clk 0:01:28.2]} 22. Rc5 {[%clk 0:01:30.1]}
22... Qa6 {[%clk 0:01:18.7]} 23. Nd4 {[%clk 0:01:24.1]} 23... Bxg2 {[%clk
0:01:15.5]} 24. Kxg2 {[%clk 0:01:25]} 24... Rb8 {[%clk 0:01:15]} 25. Qf3 {[%clk
0:01:21.8]} 25... Be7 {[%clk 0:01:02.7]} 26. Rc7 {[%clk 0:01:01.1]} 26... Nd5
{[%clk 0:01:02.3]} 27. Rc6 {[%clk 0:00:50]} 27... Qb7 {[%clk 0:01:01.4]} 28. Rc2
{[%clk 0:00:45.7]} 28... Rfc8 {[%clk 0:00:55.5]} 29. Rxc8+ {[%clk 0:00:44.4]}
29... Rxc8 {[%clk 0:00:55.2]} 30. b3 {[%clk 0:00:40.4]} 30... Qb4 {[%clk
0:00:42.1]} 31. Kg1 {[%clk 0:00:34.8]} 31... Bc5 {[%clk 0:00:35.4]} 32. Nc2
{[%clk 0:00:25.4]} 32... Bxf2+ {[%clk 0:00:28.6]} 33. Qxf2 {[%clk 0:00:20.8]}
33... Qxb3 {[%clk 0:00:29.1]} 34. Nc5 {[%clk 0:00:15.5]} 34... Qb6 {[%clk
0:00:29]} 35. Nd4 {[%clk 0:00:05.2]} 35... Qxc5 {[%clk 0:00:27.1]} 36. Rf1
{[%clk 0:00:05.5]} 36... Rc7 {[%clk 0:00:23.9]} 37. Kg2 {[%clk 0:00:04.3]} 37...
Rb7 {[%clk 0:00:21.7]} 38. Kh3 {[%clk 0:00:03.7]} 38... Nc3 {[%clk 0:00:18.4]}
39. Qf3 {[%clk 0:00:02.1]} 39... Rc7 {[%clk 0:00:17.8]} 40. Ne2 {[%clk 0:00:02]}
40... Qxe5 {[%clk 0:00:15.6]} 41. Nf4 {[%clk 0:00:01.8]} 41... Ne4 {[%clk
0:00:12.7]} 42. g4 {[%clk 0:00:01.2]} 42... Ng5+ {[%clk 0:00:12.7]} 43. Kg3
{[%clk 0:00:02.1]} 43... Nxf3 {[%clk 0:00:12.9]} 44. Kxf3 {[%clk 0:00:03]} 44...
Rc4 {[%clk 0:00:12.4]} 45. Ng2 {[%clk 0:00:02.8]} 45... Rc3+ {[%clk 0:00:11.6]}
46. Kf2 {[%clk 0:00:03.3]} 46... Rc2+ {[%clk 0:00:11]} 47. Kf3 {[%clk
0:00:03.3]} 47... Qd5+ {[%clk 0:00:10.9]} 48. Ke3 {[%clk 0:00:03.2]} 48... Rxg2
{[%clk 0:00:10.5]} 49. Rxf7 {[%clk 0:00:04.1]} 49... Kxf7 {[%clk 0:00:09.6]} 50.
g5 {[%clk 0:00:05]} 50... Qd2+ {[%clk 0:00:09.3]} 51. Ke4 {[%clk 0:00:05]} 51...
Re2+ {[%clk 0:00:08.9]} 52. Kf3 {[%clk 0:00:05]} 52... Re3+ {[%clk 0:00:09.1]}
53. Kg4 {[%clk 0:00:05.1]} 53... Qg2+ {[%clk 0:00:09.3]} 54. Kf4 {[%clk
0:00:05.5]} 54... Qf3# {[%clk 0:00:09.5]} 0-1

[Event "Early-Titled-Tuesday-Blitz-September-26-2023"]
[Site "Chess.com"]
[Date "2023.09.26"]
[Round "3"]
[White "Maxterlopez"]
[Black "Yurasova_Daria"]
[Result "1-0"]
[WhiteElo "2756"]
[BlackElo "2503"]
[TimeControl "180+1"]
[EndTime "8:29:04 PDT"]
[Termination "Maxterlopez won on time"]

1. e4 {[%clk 0:03:00.9]} 1... e5 {[%clk 0:02:59.7]} 2. Nf3 {[%clk 0:03:00.8]}
2... Nc6 {[%clk 0:02:59.9]} 3. Bc4 {[%clk 0:03:01.4]} 3... Bc5 {[%clk
0:02:59.7]} 4. c3 {[%clk 0:03:01.5]} 4... Nf6 {[%clk 0:02:57.8]} 5. d3 {[%clk
0:03:02.1]} 5... d6 {[%clk 0:02:57.9]} 6. Nbd2 {[%clk 0:03:01.3]} 6... a6 {[%clk
0:02:58.3]} 7. Nf1 {[%clk 0:03:00.8]} 7... O-O {[%clk 0:02:58.9]} 8. Ng3 {[%clk
0:03:01]} 8... d5 {[%clk 0:02:56.4]} 9. exd5 {[%clk 0:03:00.9]} 9... Nxd5 {[%clk
0:02:55.8]} 10. O-O {[%clk 0:03:01.8]} 10... Bg4 {[%clk 0:02:45.1]} 11. h3
{[%clk 0:03:01.4]} 11... Bxf3 {[%clk 0:02:37.1]} 12. Qxf3 {[%clk 0:03:02.3]}
12... Nb6 {[%clk 0:02:37.6]} 13. Bb3 {[%clk 0:03:01]} 13... Qd7 {[%clk
0:02:34.3]} 14. Nf5 {[%clk 0:02:50.1]} 14... Rad8 {[%clk 0:02:22.1]} 15. Rd1
{[%clk 0:02:30.2]} 15... Ne7 {[%clk 0:02:19.6]} 16. Nxe7+ {[%clk 0:02:15.1]}
16... Qxe7 {[%clk 0:02:20.5]} 17. Qxb7 {[%clk 0:02:15.2]} 17... Qf6 {[%clk
0:01:56.8]} 18. Be3 {[%clk 0:02:11.2]} 18... Bxe3 {[%clk 0:01:55]} 19. fxe3
{[%clk 0:02:12.1]} 19... Qg5 {[%clk 0:01:52]} 20. Qxc7 {[%clk 0:01:29.9]} 20...
Qxe3+ {[%clk 0:01:51]} 21. Kh1 {[%clk 0:01:30.6]} 21... Nd5 {[%clk 0:01:49.1]}
22. Bxd5 {[%clk 0:01:01]} 22... Rxd5 {[%clk 0:01:50]} 23. Re1 {[%clk 0:00:57.5]}
23... Qxd3 {[%clk 0:01:38.9]} 24. Rxe5 {[%clk 0:00:57.1]} 24... Rd7 {[%clk
0:01:38]} 25. Qc5 {[%clk 0:00:53.2]} 25... Qc2 {[%clk 0:01:35.9]} 26. Rae1
{[%clk 0:00:51.5]} 26... Rdd8 {[%clk 0:01:24.7]} 27. R5e2 {[%clk 0:00:51.1]}
27... Qa4 {[%clk 0:01:22.8]} 28. b3 {[%clk 0:00:50.1]} 28... Qf4 {[%clk
0:01:21.5]} 29. c4 {[%clk 0:00:49.6]} 29... h6 {[%clk 0:01:20.3]} 30. Rf2 {[%clk
0:00:49.7]} 30... Qg3 {[%clk 0:01:18.9]} 31. Ref1 {[%clk 0:00:49.8]} 31... Rd3
{[%clk 0:01:10.4]} 32. Qc6 {[%clk 0:00:44.3]} 32... a5 {[%clk 0:01:03.3]} 33.
Qc5 {[%clk 0:00:42.4]} 33... a4 {[%clk 0:01:01.8]} 34. bxa4 {[%clk 0:00:41.2]}
34... Rc3 {[%clk 0:01:00.2]} 35. a5 {[%clk 0:00:40.7]} 35... Qd3 {[%clk
0:01:00.1]} 36. Rf4 {[%clk 0:00:34]} 36... Rc2 {[%clk 0:00:58.4]} 37. a6 {[%clk
0:00:33]} 37... Rxa2 {[%clk 0:00:58]} 38. Qa7 {[%clk 0:00:26.8]} 38... Qc2
{[%clk 0:00:36.9]} 39. Qb7 {[%clk 0:00:26.3]} 39... Rb2 {[%clk 0:00:29.6]} 40.
Qd5 {[%clk 0:00:25]} 40... Kh8 {[%clk 0:00:19.9]} 41. R4f2 {[%clk 0:00:19.6]}
41... Qb3 {[%clk 0:00:15.5]} 42. Rxb2 {[%clk 0:00:17.9]} 42... Qxb2 {[%clk
0:00:16.4]} 43. a7 {[%clk 0:00:16.9]} 43... Qa2 {[%clk 0:00:16]} 44. Qb7 {[%clk
0:00:16.5]} 44... Rd8 {[%clk 0:00:09.2]} 45. Qb8 {[%clk 0:00:15.3]} 45... Qa5
{[%clk 0:00:07.8]} 46. Rb1 {[%clk 0:00:12.7]} 46... Kh7 {[%clk 0:00:06.4]} 47.
Kg1 {[%clk 0:00:09.6]} 47... Qc5+ {[%clk 0:00:05.5]} 48. Kh1 {[%clk 0:00:09.8]}
48... Qa5 {[%clk 0:00:05.4]} 49. Qb7 {[%clk 0:00:09.1]} 49... Qa2 {[%clk
0:00:03]} 50. c5 {[%clk 0:00:07.5]} 50... Rd7 {[%clk 0:00:01.4]} 51. Qe4+ {[%clk
0:00:06.6]} 51... g6 {[%clk 0:00:01.3]} 52. a8=Q {[%clk 0:00:06.6]} 1-0

[Event "Early-Titled-Tuesday-Blitz-September-26-2023"]
[Site "Chess.com"]
[Date "2023.09.26"]
[Round "3"]
[White "MatthewG-p4p"]
[Black "wannabe2700"]
[Result "0-1"]
[WhiteElo "2816"]
[BlackElo "2634"]
[TimeControl "180+1"]
[EndTime "8:29:05 PDT"]
[Termination "wannabe2700 won by resignation"]

1. e4 {[%clk 0:02:59.2]} 1... d5 {[%clk 0:03:00.2]} 2. exd5 {[%clk 0:02:57.1]}
2... Qxd5 {[%clk 0:03:01.1]} 3. Nc3 {[%clk 0:02:57]} 3... Qa5 {[%clk 0:03:00.9]}
4. d4 {[%clk 0:02:55.9]} 4... Nf6 {[%clk 0:03:01.1]} 5. Nf3 {[%clk 0:02:55.8]}
5... Bf5 {[%clk 0:03:01.3]} 6. Ne5 {[%clk 0:02:43.3]} 6... c6 {[%clk 0:03:00.5]}
7. Bc4 {[%clk 0:02:35.5]} 7... e6 {[%clk 0:03:00.1]} 8. g4 {[%clk 0:02:17.6]}
8... Be4 {[%clk 0:02:59.5]} 9. O-O {[%clk 0:02:12.5]} 9... Bd5 {[%clk
0:02:54.5]} 10. Nxd5 {[%clk 0:02:09.7]} 10... cxd5 {[%clk 0:02:53.1]} 11. Bd3
{[%clk 0:02:10.3]} 11... Nc6 {[%clk 0:02:52.6]} 12. Nxc6 {[%clk 0:01:52.9]}
12... bxc6 {[%clk 0:02:53.5]} 13. Qf3 {[%clk 0:01:52.4]} 13... Bd6 {[%clk
0:02:42.6]} 14. c3 {[%clk 0:01:50.3]} 14... O-O {[%clk 0:02:33.4]} 15. Qh3
{[%clk 0:01:46.5]} 15... g6 {[%clk 0:02:31.9]} 16. Bh6 {[%clk 0:01:45]} 16...
Rfe8 {[%clk 0:02:31.7]} 17. Rae1 {[%clk 0:01:45.4]} 17... Qxa2 {[%clk
0:02:30.2]} 18. Re2 {[%clk 0:01:37.5]} 18... Rab8 {[%clk 0:02:27.9]} 19. Qh4
{[%clk 0:01:27.8]} 19... Nd7 {[%clk 0:02:20]} 20. Bc1 {[%clk 0:01:15.9]} 20...
c5 {[%clk 0:02:15.9]} 21. Re3 {[%clk 0:00:59]} 21... cxd4 {[%clk 0:02:08.6]} 22.
Rh3 {[%clk 0:00:56.9]} 22... Nf8 {[%clk 0:02:08.4]} 23. cxd4 {[%clk 0:00:57]}
23... Be7 {[%clk 0:02:00.1]} 24. Qh6 {[%clk 0:00:51.2]} 24... Bf6 {[%clk
0:01:58.3]} 25. Bf4 {[%clk 0:00:43.8]} 25... Rxb2 {[%clk 0:01:56.7]} 26. Bd6
{[%clk 0:00:44.2]} 26... Bg7 {[%clk 0:01:55.8]} 27. Qf4 {[%clk 0:00:43.4]} 27...
Rd2 {[%clk 0:01:43.1]} 28. Rf3 {[%clk 0:00:42.5]} 28... f5 {[%clk 0:01:37.7]}
29. Re1 {[%clk 0:00:39.5]} 29... Rb2 {[%clk 0:00:58.2]} 30. gxf5 {[%clk
0:00:37.1]} 30... gxf5 {[%clk 0:00:56.7]} 31. Bxf5 {[%clk 0:00:35.7]} 31... Re2
{[%clk 0:00:45.6]} 32. Rxe2 {[%clk 0:00:29]} 32... Qxe2 {[%clk 0:00:46.5]} 33.
Bxh7+ {[%clk 0:00:15.2]} 33... Kxh7 {[%clk 0:00:42.3]} 34. Qf7 {[%clk
0:00:15.4]} 34... Qe1+ {[%clk 0:00:11.1]} 35. Kg2 {[%clk 0:00:15.5]} 35... Qe4
{[%clk 0:00:12]} 36. Qh5+ {[%clk 0:00:07.6]} 36... Bh6 {[%clk 0:00:12.5]} 37.
Qf7+ {[%clk 0:00:06.7]} 37... Bg7 {[%clk 0:00:13.1]} 38. Qh5+ {[%clk 0:00:05.6]}
38... Bh6 {[%clk 0:00:13]} 39. Qxe8 {[%clk 0:00:06.5]} 39... Ng6 {[%clk
0:00:13]} 40. Qf7+ {[%clk 0:00:06.1]} 40... Bg7 {[%clk 0:00:13.5]} 41. Be5
{[%clk 0:00:06.6]} 41... Nh4+ {[%clk 0:00:10]} 42. Kg3 {[%clk 0:00:05.9]} 42...
Qxf3+ {[%clk 0:00:10.2]} 43. Qxf3 {[%clk 0:00:04.9]} 43... Nxf3 {[%clk
0:00:09.6]} 44. Bxg7 {[%clk 0:00:04.1]} 44... Kxg7 {[%clk 0:00:09.3]} 45. Kxf3
{[%clk 0:00:04.7]} 45... a5 {[%clk 0:00:07.8]} 46. Ke3 {[%clk 0:00:05.4]} 46...
a4 {[%clk 0:00:08.3]} 47. Kd3 {[%clk 0:00:06]} 47... a3 {[%clk 0:00:09.1]} 48.
Kc3 {[%clk 0:00:06.5]} 48... Kf6 {[%clk 0:00:09.1]} 49. h4 {[%clk 0:00:05.3]}
49... e5 {[%clk 0:00:08.8]} 50. dxe5+ {[%clk 0:00:03.9]} 50... Kxe5 {[%clk
0:00:09.7]} 51. h5 {[%clk 0:00:04.7]} 51... d4+ {[%clk 0:00:10]} 52. Kb3 {[%clk
0:00:05.4]} 52... d3 {[%clk 0:00:10.3]} 53. f4+ {[%clk 0:00:06.1]} 53... Kf6
{[%clk 0:00:09.7]} 54. Kxa3 {[%clk 0:00:06.3]} 54... d2 {[%clk 0:00:09.9]} 55.
Kb2 {[%clk 0:00:07]} 55... d1=Q {[%clk 0:00:10.5]} 0-1